Cogmind - Beta 17 @@@ ROGUE MODE // 2026.06.29 @ 19:48:07 Player: f3-rnm Result: Destroyed by Autobeam Turret with Autobeam Performance ------------- Evolutions (0) 0 Regions Visited (2) 400 Robots Destroyed (19) 95 Value Destroyed (368) 368 Prototype IDs (15) 300 Alien Tech Used (0) 0 Bonus (6050) 6050 TOTAL SCORE: 7213 Bonus ------- Prayed to X0-1V1 5000 Major X0-1V1 Interference 1050 Cogmind --------- Core Integrity 0/150 Matter 30/150 Energy 100/100 System Corruption 28% Temperature Cool (6) Movement Core (1450) Ox28 Location -10/Subcaves Parts ------- > --- POWER (1) -------- (None) > --- PROPULSION (2) --- (None) > --- UTILITY (3) ------ Huge Storage Unit Utility Shielding X0-1V1's Piety Tracker > --- WEAPON (1) ------- Subdweller Machine Gun > --- INVENTORY (25) --- Light Treads Light Treads Light Treads Light Treads Compact Wheel Terrain Scanner Small Laser Small Laser Small Laser Small Laser Subdweller Beam Cannon Powered Cannon Grenade Launcher Grenade Launcher Grenade Launcher Peak State ------------ > --- POWER ------------ Ion Engine > --- PROPULSION ------- Light Treads Light Treads > --- UTILITY ---------- Huge Storage Unit X0-1V1's Piety Tracker > --- WEAPON ----------- Subdweller Beam Cannon Subdweller Machine Gun > --- INVENTORY -------- Light Treads Light Treads Light Treads Light Treads Compact Wheel Terrain Scanner Utility Shielding Small Laser Small Laser Small Laser Small Laser Grenade Launcher Grenade Launcher Grenade Launcher [Rating: 22] Favorites ----------- Power Ion Engine Engine Ion Engine Propulsion Light Treads Treads Light Treads Wheel Compact Wheel Utility Huge Storage Unit Device X0-1V1's Piety Tracker Storage Huge Storage Unit Protection Utility Shielding Weapon Small Laser Energy Gun Small Laser Energy Cannon Subdweller Beam Cannon Ballistic Gun Subdweller Machine Gun Build | -11 -10 -10 ------- Run | Yrd Mat Sub Slots Evolved . | . . . Power . | . . . Propulsion . | . . . Utility . | . . . Weapon . | . . . Parts Attached 21 | 6 5 10 Power 2 | 1 . 1 Engine 2 | 1 . 1 Core . | . . . Reactor . | . . . Propulsion 6 | 2 1 3 Treads 5 | 2 1 2 Leg . | . . . Wheel 1 | . . 1 Hover . | . . . Flight . | . . . Utility 5 | 1 2 2 Device 2 | . 1 1 Storage 2 | 1 1 . Processor . | . . . Hackware . | . . . Protection 1 | . . 1 Artifact . | . . . Weapon 8 | 2 2 4 Energy Gun 6 | 2 2 2 Energy Cannon 1 | . . 1 Ballistic Gun 1 | . . 1 Ballistic Cannon . | . . . Launcher . | . . . Special Weapon . | . . . Impact Weapon . | . . . Slashing Weapon . | . . . Piercing Weapon . | . . . Special Melee Weapon . | . . . Unidentified Prototypes 1 | . 1 . Parts Lost 11 | . 3 8 Power 2 | . . 2 Propulsion 5 | . 1 4 Utility 1 | . . 1 Weapon 3 | . 2 1 Highest Loss Streak 5 | . 1 5 To Critical Strikes . | . . . Average Backups 13 | . 12 14 Power . | . 1 . Propulsion 5 | . 6 5 Utility 1 | . 1 1 Weapon 6 | . 4 7 Tool/Special . | . . . Unused Backups 10 | . . 10 Power . | . . . Propulsion 4 | . . 4 Utility 1 | . . 1 Weapon 5 | . . 5 Tool/Special . | . . . Average Slot Usage (%) 97 | . 93 99 Engine 13 | . 14 13 Treads 27 | . 27 27 Device 9 | . . 13 Storage 16 | . 21 14 Protection 4 | . . 7 Energy Gun 15 | . 27 9 Energy Cannon 2 | . . 3 Ballistic Gun 5 | . . 8 Peak Build Rating 22 | 6 20 22 Average Rating 16 | 4 7 20 On Entrance 8 | . 6 20 Avg Prop Armor Cover (%) 17 | . . 17 Naked Turns . | . . . Heaviest Build 98 | 12 92 98 Greatest Support 40 | 40 40 40 Greatest Overweight (x) 28 | . 4 28 Average Overweight (x) 1 | . 1 2 Largest Inventory Capacity 25 | 8 25 25 Average Capacity 24 | 6 23 25 Most Carried 16 | 2 16 16 Average Carried 13 | . 12 14 Final Capacity 25 | 8 25 25 Final Carried 16 | 2 16 16 Class Distribution -------------------- 100% | Mutant Dominant Class ---------------- Mutant | -10/Materials Mutant | -10/Subcaves Resources | -11 -10 -10 ----------- Run | Yrd Mat Sub Matter Collected 427 | 191 104 132 Remotely . | . . . Salvage Created 622 | 23 454 145 Parts 49 | 2 36 11 Haulers Intercepted 2 | . 2 . Recyclers Shooed 1 | . 1 . Parts Field Recycled . | . . . Retrieved Matter . | . . . Parts Self-Destructed 18 | . . 18 Prevented . | . . . Parts Restored . | . . . Kills | -11 -10 -10 ------- Run | Yrd Mat Sub Combat Hostiles Destroyed 14 | . 11 3 Guns 13 | . 11 2 Cannons 1 | . . 1 Classes Destroyed 7 | 1 5 1 Worker 1 | . 1 . Builder 1 | . 1 . Tunneler 1 | 1 . . Hauler 2 | . 2 . Swarmer 6 | . 6 . Grunt 7 | . 5 2 Subdweller 1 | . . 1 Best Kill Streak 3 | 1 3 1 Combat Bots Only 3 | . 3 1 Max Kills in Single Turn 2 | 1 2 1 Gunslinging . | . . . Exploded . | . . . Melee . | . . . Uniques/NPCs Destroyed . | . . . Combat | -11 -10 -10 -------- Run | Yrd Mat Sub Hostile Shots Fired 186 | . 99 87 Missed 52 | . 24 28 Hits 134 | . 75 59 Projectile 134 | . 75 59 AOE 4 | . . 4 Critical Strikes 2 | . . 2 Damage Taken 1568 | . 703 865 Core 251 | . 77 174 Absorbed by Shields . | . . . Redirected to Shielding 11 | . . 11 Core Remaining (%) 100 | 100 . . Volleys Fired 101 | 2 50 49 Largest 2 | 2 2 2 Hottest 120 | 80 80 120 Shots Fired 176 | 4 97 75 Gun 170 | 4 97 69 Cannon 6 | . . 6 Launcher . | . . . Special . | . . . Kinetic 32 | . . 32 Thermal 144 | 4 97 43 Explosive . | . . . Electromagnetic . | . . . Robot Hit Streak 9 | 1 9 6 Robot Miss Streak 4 | 1 4 4 Penetration Max . | . . . Secondary Targets 4 | . 3 1 Max Gunslinging Chain 1 | . 1 1 Shots Hit Robots 84 | 2 55 27 Core Hits 32 | 1 22 9 Critical Kills . | . . . Critical Parts Destroyed . | . . . Critical Strikes . | . . . Melee Attacks . | . . . Impact . | . . . Slashing . | . . . Piercing . | . . . Sneak Attacks . | . . . Combat Hostiles . | . . . Follow-up Attacks . | . . . Damage Inflicted 990 | 22 658 310 Guns 938 | 22 658 258 Cannons 52 | . . 52 Explosions . | . . . Melee . | . . . Ramming . | . . . Kinetic . | . . . Thermal 990 | 22 658 310 Explosive . | . . . Electromagnetic . | . . . Impact . | . . . Slashing . | . . . Piercing . | . . . Highest Corruption 28 | . 3 28 Average Corruption 13 | . 2 15 Corruption Purged . | . . . Corruption Blocked . | . . . Effects 83 | . 9 74 Message Errors 21 | . 3 18 Matter Fused 15 | . . 15 Heat Flow Errors 16 | . 1 15 Energy Discharges 13 | . 3 10 Data Loss (minor) 6 | . 1 5 Data Loss (major) 4 | . . 4 Misfires 4 | . . 4 Alerts 3 | . . 3 Weapon Failures 1 | . 1 . Overload Shots . | . . . Overflow Damage . | . . . Projectiles . | . . . Explosions . | . . . Melee . | . . . Knockbacks . | . . . Impact . | . . . Kinetic . | . . . Secondary . | . . . Self-Inflicted Damage . | . . . Shots . | . . . Rammed . | . . . Targets Rammed . | . . . Kicked . | . . . Crushed . | . . . Highest Temperature 269 | 36 254 269 Average Temperature 83 | 20 79 99 Received Heat Transfer 816 | . 216 600 Siege Activations . | . . . Martial Activations . | . . . Shielding Activations . | . . . Robots Disrupted . | . . . Combat Hostiles . | . . . Robots Corrupted . | . . . Combat Hostiles . | . . . Parts Fried . | . . . Impact Corruptions . | . . . Robots Melted . | . . . Combat Hostiles . | . . . Parts Melted 4 | . 3 1 Heat Transferred 2224 | 50 1500 674 Parts Sabotaged . | . . . Parts Stolen . | . . . Parts Stripped . | . . . Power Chain Reactions . | . . . Alert | -11 -10 -10 ------- Run | Yrd Mat Sub Maximum Alert Level . | . . . Low Security (%) 100 | 100 100 . Level 1 . | . . . Level 2 . | . . . Level 3 . | . . . Level 4 . | . . . Level 5 . | . . . High Security . | . . . Max Security . | . . . Peak Influence 80 | 5 80 . Initial 3 | . 3 . Average 14 | 1 15 . Influence Increases 384 | 5 284 95 Destroy 0b10 Robot/C 260 | . 220 40 Destroy 0b10 Robot/NC 25 | 5 20 . Destroy Leader 54 | . 44 10 Lose Combat Pursuer 45 | . . 45 Influence Decreases 370 | . 289 81 Entered New Map 2 | . 2 . Time Decay 318 | . 267 51 Lost Part 50 | . 20 30 Squads Dispatched 2 | . 2 . Investigation . | . . . Extermination . | . . . Reinforcement 2 | . 2 . Assault . | . . . Garrison . | . . . Intercept . | . . . Searches Triggered . | . . . Construction Impeded . | . . . Haulers Reinforced . | . . . Active Scanning Responses . | . . . Cargo Convoy Interrupts . | . . . Stealth | -11 -10 -10 --------- Run | Yrd Mat Sub Distress Signals 1 | . 1 . Communications Jammed . | . . . Distress Signals . | . . . Times Spotted 29 | . 19 10 Peak Tracking Total 5 | . 5 4 Tactical Retreats 1 | . . 1 Traps | -11 -10 -10 ------- Run | Yrd Mat Sub Traps Triggered 4 | . 2 2 Indirectly . | . . . Trap Hack Attempts . | . . . Triggered . | . . . Disarmed . | . . . Reprogrammed . | . . . Reused . | . . . Traps Extracted . | . . . Installed . | . . . Triggered . | . . . Machines | -11 -10 -10 ---------- Run | Yrd Mat Sub Machines Disabled 1 | . . 1 Max in Single Turn 1 | . . 1 Machines Repaired . | . . . Machines Dismantled . | . . . Machines Sabotaged . | . . . Overloaded Fab Kills . | . . . Hacking | -11 -10 -10 --------- Run | Yrd Mat Sub Machines Accessed 1 | . . 1 Terminals . | . . . Fabricators . | . . . Repair Stations . | . . . Recycling Units . | . . . Scanalyzers . | . . . Garrison Access . | . . . Total Hacks 1 | . . 1 Successful 1 | . . 1 Failed . | . . . Catastrophic . | . . . Database Lockouts . | . . . Manual 1 | . 1 . Terminals . | . . . Fabricators . | . . . Repair Stations . | . . . Recycling Units . | . . . Scanalyzers . | . . . Garrison Access . | . . . Terminal Hacks 1 | . . 1 Proto ID Catalog 1 | . . 1 Fabricator Hacks . | . . . Repair Station Hacks . | . . . Recycling Unit Hacks . | . . . Scanalyzer . | . . . Garrison Access Hacks . | . . . Unauthorized Hacks . | . . . Terminals . | . . . Fabricators . | . . . Repair Stations . | . . . Recycling Units . | . . . Scanalyzers . | . . . Garrison Access . | . . . Data Cores Recovered . | . . . Used . | . . . Hacking Detections . | . . . Full Trace Events . | . . . Feedback Events . | . . . Feedback Blocked . | . . . Robot Schematics Acquired . | . . . Robots Built . | . . . Authchips . | . . . Time . | . . . Total Robot Build Rating . | . . . Part Schematics Acquired . | . . . Parts Built . | . . . Authchips . | . . . Time . | . . . Total Part Build Rating . | . . . Part Studies Acquired . | . . . Parts Repaired . | . . . Time . | . . . Parts Recycled . | . . . Recycled Matter . | . . . Retrieved Matter . | . . . Retrieved Components . | . . . Parts Scanalyzed . | . . . Part Schematics Acquired . | . . . Parts Damaged . | . . . Bothacking | -11 -10 -10 ------------ Run | Yrd Mat Sub Used RIF Installer . | . . . Robots Hacked . | . . . Non-combat . | . . . Combat . | . . . Robot Hacks Applied . | . . . Relay Couplers Released . | . . . Fabnet Peak Effective % . | . . . Robots Rewired . | . . . Allies Hacked . | . . . Hacks Repelled . | . . . Allies | -11 -10 -10 -------- Run | Yrd Mat Sub Total Allies . | . . . Largest Group . | . . . Highest-Rated Group . | . . . Highest-Rated Ally . | . . . Total Orders . | . . . Ally Attacks . | . . . Total Damage . | . . . Kills . | . . . Allies Corrupted . | . . . Allies Melted . | . . . X0-1V1 Amusement Gains 70 | . 20 50 Good Acts 3 | . . 3 Bad Acts 10 | . . 10 Intel | -11 -10 -10 ------- Run | Yrd Mat Sub Active Infowar (turns) . | . . . Robot Analysis Total . | . . . Derelict Logs Recovered . | . . . Drone Launches . | . . . Drone Recoveries . | . . . Exploration | -11 -10 -10 ------------- Run | Yrd Mat Sub Turns Passed 4157 | 77 1236 2844 Spaces Moved 1061 | 41 316 704 Core 5 | 4 . 1 Treads 1049 | 37 316 696 Legs . | . . . Wheels 7 | . . 7 Hover . | . . . Flight . | . . . Fastest Speed 50 | 50 160 175 Average Speed 306 | 149 296 320 Slowest Speed 1450 | 160 480 1450 Overloaded Moves . | . . . Propulsion Burnouts . | . . . Robots Hopped . | . . . Potential Cave-ins . | . . . Cave-ins Triggered . | . . . Exploration Rate (%) 36 | 3 61 44 Regions Visited 2 Branch Regions 1 Pre-discovered Areas . | . . . Known Exits Taken . | . . . Unknown Exits Taken 2 | 1 1 . Scrap Searched 1 | . . 1 Spaces Dug . | . . . Terrain Destroyed . | . . . Melee . | . . . Projectile . | . . . AOE . | . . . Terrain Rammed . | . . . Walls Destroyed . | . . . Machines Disabled . | . . . Actions | -11 -10 -10 --------- Run | Yrd Mat Sub Total 1798 | 50 519 1229 Wait 591 | . 131 460 Move 1059 | 40 315 704 Hop . | . . . Pick Up 23 | 2 17 4 Fast Attach 10 | 6 2 2 Attach 8 | . 3 5 Detach . | . . . Swap 4 | . . 4 Drop 2 | . 1 1 Fire 101 | 2 50 49 Melee . | . . . Ram . | . . . Kick . | . . . Crush . | . . . Escape Stasis . | . . . Rewire . | . . . Trap . | . . . Miscellaneous . | . . . Route ------- -11/Scrapyard -10/Materials (discovered 4 exits: [*Mat x2] / [*Min] / *Sub) -10/Subcaves (discovered 2 exits: [*Mat] / *Rec) History --------- Turn | Location | Event 7 | -11/Scrapyard | Discovered new exit (range 16) 78 | -11/Scrapyard | Entered Materials 130 | -10/Materials | Discovered new exit (range 16) 301 | -10/Materials | Build established: Mutant 1004 | -10/Materials | Discovered new exit (range 5) 1113 | -10/Materials | Discovered new exit (range 14) 1235 | -10/Materials | Discovered new exit (range 8) 1287 | -10/Materials | Prayed at D.C.S.S. Altar Unit 1314 | -10/Materials | Entered Subcaves 1486 | -10/Subcaves | Identified exit to Recycling 1486 | -10/Subcaves | X0-1V1 revealed exit location to -7/Recycling 1558 | -10/Subcaves | Core integrity fell below 50% 1587 | -10/Subcaves | Lost 5 parts (1p2n1u1w) 1824 | -10/Subcaves | EM resistance permanently improved by X0-1V1 (+10%; -100 max core) 1984 | -10/Subcaves | Discovered new exit (range 9) 2641 | -10/Subcaves | System corruption reached 10% 2677 | -10/Subcaves | Shifting Twisted Machinery released Sub. Monowheel 2692 | -10/Subcaves | X0-1V1 mutated your Weapon slot to Utility slot 2828 | -10/Subcaves | Visited 4L-MR0's lab 2865 | -10/Subcaves | Found Powered Cannon 4140 | -10/Subcaves | X0-1V1 sent you into danger 4141 | -10/Subcaves | Shifting Twisted Machinery released Sub. Power Source 4144 | -10/Subcaves | Ambushed by Subdwellers from Twisted Machinery 4155 | -10/Subcaves | Core integrity fell below 20% 4158 | -10/Subcaves | Destroyed by Autobeam Turret with Autobeam Last Messages --------------- 03966_ EV,XWCJFBFSNRIKSECO|OYYEK8BYT4C VMN% 1O 03982_ HRZYCJC9Q>RVVYK3OQAQXM6:/XIXO 03984_ X0-1V1: "In a world full of sensor tech, vision is overrated." (-9 sight range) 04000_ System corrupted: Energy discharge (-65). 04024_ GKQJYCJ/TS46P1RJM3JZ 04039_ System corrupted: Substantial component data lost. 04073_ 0/PEZWN=AJOFVIJBZYNYM:P%GCTO 04095_ Sight range returns to normal. 04140_ X0-1V1: "Enjoy the ride!" Sub. Power Source falls loose from the Twisted Machinery. 04143_ System corrupted: FCS attempts to trigger Sub. Machine Gun. 04143_ Acquired 15 matter. 04144_ Z9-V9Z(R) emerges from the Twisted Machinery. 04147_ Ion Engine destroyed. 04154_ Machine disabled. 04154_ Lgt. Treads destroyed. 04156_ Autobeam Turret destroyed. 04156_ Machine disabled. 04158_ X0-1V1 chortles! Map ----- +----------------------------------------------------+ | ?????????????????????????????????????????????????? | | ?????????????????????????????????????????????????? | | ?????????????????????????????????????????????????? | | ?????????????????????????????????????????????????? | | ?????????????????????????????????????????????????? | | ?????????????????????????????????????????????????? | | ?????????????????????????????????????????????????? | | ?????????????????????????????????????????????????? | | ?????????????????????????????????????????????????? | | ?????????????????????????????????????????????????? | | ?????????????????????????????????????????????????? | | ?????????????????????????????????????????????????? | | ?????????????????????????????????????????????????? | | ?????????????????????????????????????????????????? | | ?????????????????????????????????????????????????? | | ?????????????????????????????????????????????????? | | ?????????????????????????????????????????????????? | | ?????????????????????????????????????????????????? | | ?????????????????????????????????????????????????? | | ????????????????????########?????????????????????? | | ????????????????????#""" ##????????????????????? | | ?? ???????#####???# ;###??????????????????? | | ? ?????? ## ;;;#??????????????????? | | ? ????? ???#; |;#??????????????????? | | ?# ?????# ???#;> % % ####???????????????? | | ??# ##??## ???##; t @ ;;####????????????? | | ???# ### #???# ##???????????? | | ???# ##### =%& #????????? | | ???# # ; #????????? | | #??# ; " #???????? | | ##?# ##### ## %" ?????? | | #?## ##???##? # R;; ???????? | | ###### ##??????? ;; ????????? | | #?# ##???????? ????????? | | ###?### ##???????? #;;* ????????? | | ###???### #????????? ###### ;R #????????? | | #?????# #????????? #???????;;; "?????????? | | ####### ##????????? ????????### ?????????? | | ## ### ##????????? ??????????? ???????????? | | ### #?????????? ?????????????????????????? | | ### ####?????????????????????????????????? | | ## ##????????????????????????????????? | | ##???????????????????????????????? | | ### ##??????????????????????????????? | | #?## #????????????????????????????? | | ###??## ##### #???????????????????????????? | | ??????######????# #???????????????????????????? | | ?????????????????# ##???????????????????????????? | | ??????????????????###????????????????????????????? | | ??????????????????????##?????????????????????????? | +----------------------------------------------------+ Best States ------------- Heat Dissipation 25 Energy Generation 10 Energy Capacity 250 Matter Stores 300 Matter Capacity 300 Sight Range 16 Terrain Scan Density 10 Resistance: EM 10 Utility Shielding 33 Evasion (%) 40 Recoil Reduction 2 Item Schematics ----------------- None Robot Schematics ------------------ None Fabricated ------------ Nothing Repaired ---------- Nothing Studied --------- None Alien Tech Used ----------------- None Achievements -------------- None Challenges ------------ None Game ------ Seed ChromionCentriumDisplacer Manual? 0 Play Time 00:11:04 Cumulative 537.7 hours Start 2026.06.29 @ 19:38:51 End 2026.06.29 @ 19:48:07 Sessions 1 Manual Loads 0 Difficulty Rogue Special Mode None Game No. 449 Rogue 413 Adventurer 36 Explorer 0 Win Type - Total 26 Types 10/0/14/0/0/1/1/0/0/0 Lore% 73 Gallery% 85 Achievement% 73 Wizard Run 0 Options --------- Layout 0 ASCII 0 Keyboard 0 Movement Mouse Keybinds 0 Fullscreen 1 Font 18/SmallcapsGlow Map View 76x50 Zoom Use 0% Tactical HUD 1 Map Filters NONE Filters NONE Steam 1 RUN: 352ad637-efb2-465c-aae4-89f6fd9481d1